fUSD/lending_fUSD_20260128
["ID","MTS","AMOUNT","RATE_DAILY","PERIOD"]
[403862295,1769607048084,-500.0,0.00021973,2]
[403862296,1769607048094,-244.76,0.00022,7]
[403862297,1769607048103,-70422.45844552,0.00022,4]
[403862298,1769607048113,-500.0,0.00022028,2]
[403862299,1769607048123,-158.7386143,0.00022061,2]
[403862300,1769607048135,-500.0,0.00022082,2]
[403862301,1769607048144,-500.0,0.00022137,2]
[403862302,1769607048154,-500.0,0.00022192,2]
[403862303,1769607048168,-1000.0,0.0002221,2]
[403862304,1769607048178,-500.0,0.00022247,2]
[403862305,1769607048187,-6453.0,0.00022248,2]
[403862306,1769607048198,-500.0,0.00022302,2]
[403862307,1769607048207,-500.0,0.00022356,2]
[403862308,1769607048217,-800.0,0.00022392,8]
[403862309,1769607048226,-800.0,0.00022392,8]
[403862310,1769607048235,-800.0,0.00022392,8]
[403862311,1769607048244,-800.0,0.00022392,8]
[403862312,1769607048254,-800.0,0.00022392,8]
[403862313,1769607048263,-800.0,0.00022392,8]
[403862314,1769607048272,-800.0,0.00022392,8]
[403862315,1769607048281,-800.0,0.00022392,8]
[403862316,1769607048290,-500.0,0.00022411,2]
[403862317,1769607048301,-500.0,0.00022466,2]
[403862318,1769607048310,-150.00265662,0.00022475,17]
[403862319,1769607048320,-173.98525455,0.000225,7]
[403862320,1769607048329,-501.16065005,0.00022521,2]
[403862321,1769607048338,-1000.0,0.00022521,2]
[403862322,1769607048347,-1000.0,0.00022521,2]
[403862323,1769607048357,-1000.0,0.00022521,2]
[403862324,1769607048366,-1000.0,0.00022521,2]
[403862325,1769607048375,-1000.0,0.00022521,2]
[403862326,1769607048384,-1002.72215136,0.00022521,2]
[403862327,1769607048394,-1000.0,0.00022521,2]
[403862328,1769607048403,-1000.0,0.00022521,2]
[403862329,1769607048412,-502.34645395,0.00022521,2]
[403862330,1769607048421,-524.43176948,0.00022521,2]
[403862331,1769607048430,-500.89949552,0.00022521,2]
[403862332,1769607048439,-1000.0,0.00022521,2]
[403862333,1769607048448,-502.70174181,0.00022521,2]
[403862334,1769607048458,-501.32277439,0.00022521,2]
[403862335,1769607048467,-501.77453668,0.00022521,2]
[403862336,1769607048476,-1000.0,0.00022521,2]
[403862337,1769607048485,-1001.69009252,0.00022521,2]
[403862338,1769607048494,-1000.0,0.00022521,2]
[403862339,1769607048503,-1000.0,0.00022521,2]
[403862340,1769607048512,-1000.0,0.00022521,2]
[403862341,1769607048522,-1006.47973873,0.00022521,2]
[403862342,1769607048531,-1000.0,0.00022521,2]
[403862343,1769607048540,-1000.0,0.00022521,2]
[403862344,1769607048549,-1000.0,0.00022521,2]
[403862345,1769607048558,-1000.0,0.00022521,2]
[403862346,1769607048567,-500.0,0.00022521,2]
[403862347,1769607048576,-311.46,0.00022568,2]
[403862348,1769607048585,-371.95,0.0002259,2]
[403862349,1769607048595,-245.38,0.00022811,2]
[403862350,1769607048604,-1003.52399102,0.00023068,2]
[403862351,1769607048613,-656.61150819,0.00023068,2]
[403862352,1769607048622,-1500.0,0.00023068,2]
[403862353,1769607048634,-1043.91129536,0.00023068,2]
[403862354,1769607048643,-1500.0,0.00023068,2]
[403862355,1769607048652,-1500.0,0.00023068,2]
[403862356,1769607048663,-1017.33172074,0.00023068,2]
[403862357,1769607048674,-1038.06736554,0.00023068,2]
[403862358,1769607048683,-1500.0,0.00023068,2]
[403862359,1769607048692,-1500.0,0.00023068,2]
[403862360,1769607048701,-406.59218179,0.00023068,2]
[403862361,1769607048711,-1500.0,0.00023068,2]
[403862362,1769607048720,-1500.0,0.00023068,2]
[403862363,1769607048729,-1500.0,0.00023068,2]
[403862364,1769607048738,-1500.0,0.00023068,2]
[403862365,1769607048747,-502.64656649,0.00023068,2]
[403862366,1769607048756,-209.28929397,0.00023079,2]
[403862367,1769607048766,-506.0,0.00023167,6]
[403862368,1769607048775,-422.0,0.0002323,2]
[403862369,1769607048783,-1481.92469826,0.00023616,2]
[403862370,1769607048793,-2000.0,0.00023616,2]
[403862371,1769607048803,-2000.0,0.00023616,2]
[403862372,1769607048813,-2000.0,0.00023616,2]
[403862373,1769607048823,-301.03665033,0.00023616,2]
[403862374,1769607048834,-681.38898729,0.00023616,2]
[403862375,1769607048845,-2000.0,0.00023616,2]
[403862376,1769607048855,-2005.87477208,0.00023616,2]
[403862377,1769607048864,-1209.41969905,0.00023616,2]
[403862378,1769607048876,-564.32158074,0.00023649,2]
[403862379,1769607048886,-150.00265662,0.00023895,22]
[403862380,1769607048896,-2500.0,0.00024164,2]
[403862381,1769607048906,-2500.0,0.00024164,2]
[403862382,1769607048915,-1251.55597264,0.00024164,2]
[403862383,1769607048924,-2001.23123216,0.00024164,2]
[403862384,1769607048934,-4046.5,0.00024299,2]
[403862385,1769607048943,-341.0,0.00024472,2]
[403862386,1769607048953,-6520.91910662,0.000245,2]
[403862387,1769607048963,-1183.87619151,0.00024712,2]
[403862388,1769607048973,-1214.55464452,0.00024712,2]
[403862389,1769607048982,-163.57,0.00024735,2]
[403862390,1769607048991,-10306.1413239,0.000248,3]
[403862391,1769607049000,-1257.28345646,0.00024822,7]
[403862392,1769607049009,-158.7386143,0.00025213,2]
[403862393,1769607049018,-150.00265662,0.00025315,27]
[403862394,1769607049031,-33735.46695411,0.00026,10]
[403862395,1769607049041,-3317.99093378,0.00026322,14]
[403862396,1769607049050,-4046.5,0.00026662,2]
[403862397,1769607049059,-150.00265662,0.00026735,31]
[403862398,1769607049069,-311.46,0.0002717,2]
[403862399,1769607049078,-371.95,0.00027182,2]
[403862400,1769607049086,-150.0,0.00027369,2]
[403862401,1769607049096,-171.93,0.0002737,2]
[403862402,1769607049105,-2000.0,0.00027397,2]
[403862403,1769607049115,-750.0,0.00027397,20]
[403862404,1769607049124,-245.38,0.00027595,2]
[403862405,1769607049134,-150.00265662,0.00028155,35]
[403862406,1769607049144,-506.0,0.00028333,11]
[403862407,1769607049153,-211.0,0.0002835,2]
[403862408,1769607049163,-158.7386143,0.00028365,2]
[403862409,1769607049172,-778.02286202,0.00028463,2]
[403862410,1769607049182,-564.32158074,0.00028566,2]
[403862411,1769607049192,-2443.0,0.00028682,2]
[403862412,1769607049202,-5930.0,0.00028682,2]
[403862413,1769607049212,-6616.523,0.00028682,2]
[403862414,1769607049221,-2000.0,0.00028767,12]
[403862415,1769607049230,-4046.5,0.00029024,2]
[403862416,1769607049240,-151.0,0.0002903,7]
[403862417,1769607049251,-151.0,0.00029033,2]
[403862418,1769607049261,-500.0,0.00029033,2]
[403862419,1769607049270,-500.0,0.00029033,2]
[403862420,1769607049280,-500.0,0.00029033,2]
[403862421,1769607049289,-500.0,0.00029033,2]
[403862422,1769607049299,-500.0,0.00029033,2]
[403862423,1769607049308,-500.0,0.00029033,2]
[403862424,1769607049318,-500.0,0.00029033,2]
[403862425,1769607049328,-500.0,0.00029033,2]
[403862426,1769607049337,-500.0,0.00029033,2]
[403862427,1769607049347,-500.0,0.00029033,2]
[403862428,1769607049356,-500.0,0.00029033,2]
[403862429,1769607049366,-500.0,0.00029033,2]
[403862430,1769607049376,-2000.0,0.00029033,2]
[403862431,1769607049385,-500.0,0.00029033,2]
[403862432,1769607049395,-500.0,0.00029033,2]
[403862433,1769607049409,-500.0,0.00029033,2]
[403862434,1769607049419,-2000.0,0.00029033,2]
[403862435,1769607049429,-500.0,0.00029033,2]
[403862436,1769607049440,-500.0,0.00029033,2]
[403862437,1769607049449,-500.0,0.00029033,2]
[403862438,1769607049458,-2000.0,0.00029033,2]
[403862439,1769607049467,-500.0,0.00029033,2]
[403862440,1769607049477,-500.0,0.00029033,2]
[403862441,1769607049486,-500.0,0.00029033,2]
[403862442,1769607049495,-500.0,0.00029033,2]
[403862443,1769607049504,-2000.0,0.00029033,2]
[403862444,1769607049513,-500.0,0.00029033,2]
[403862445,1769607049523,-500.0,0.00029033,2]
[403862446,1769607049532,-500.0,0.00029033,2]
[403862447,1769607049542,-500.0,0.00029033,2]
[403862448,1769607049551,-2000.0,0.00029033,2]
[403862449,1769607049560,-500.0,0.00029033,2]
[403862450,1769607049569,-500.0,0.00029033,2]
[403862451,1769607049579,-500.0,0.00029033,2]
[403862452,1769607049590,-500.0,0.00029033,2]
[403862453,1769607049604,-2000.0,0.00029033,2]
[403862454,1769607049614,-500.0,0.00029033,2]
[403862455,1769607049624,-500.0,0.00029033,2]
[403862456,1769607049633,-500.0,0.00029033,2]
[403862457,1769607049647,-500.0,0.00029033,2]
[403862458,1769607049656,-2000.0,0.00029033,2]
[403862459,1769607049666,-500.0,0.00029033,2]
[403862460,1769607049676,-500.0,0.00029033,2]
[403862461,1769607049685,-500.0,0.00029033,2]
[403862462,1769607049695,-500.0,0.00029033,2]
[403862463,1769607049704,-2000.0,0.00029033,2]
[403862464,1769607049713,-500.0,0.00029033,2]
[403862465,1769607049723,-250.0,0.00029033,2]
[403862466,1769607049732,-2000.0,0.00029033,2]
[403862467,1769607049742,-250.0,0.00029033,2]
[403862468,1769607049752,-500.0,0.00029033,2]
[403862469,1769607049761,-2000.0,0.00029033,2]
[403862470,1769607049770,-250.0,0.00029033,2]
[403862471,1769607049779,-500.0,0.00029033,2]
[403862472,1769607049789,-2000.0,0.00029033,2]
[403862473,1769607049801,-250.0,0.00029033,2]
[403862474,1769607049811,-500.0,0.00029033,2]
[403862475,1769607049821,-151.0,0.00029033,2]
[403862476,1769607049830,-250.0,0.00029033,2]
[403862477,1769607049839,-500.0,0.00029033,2]
[403862478,1769607049851,-156.587,0.00029033,2]
[403862479,1769607049861,-329.52737061,0.00029033,2]
[403862480,1769607049872,-500.0,0.00029033,2]
[403862481,1769607049882,-162.380719,0.00029033,2]
[403862482,1769607049892,-157.05661781,0.00029033,2]
[403862483,1769607049902,-209.40437684,0.00029033,2]
[403862484,1769607049912,-151.0,0.00029033,2]
[403862485,1769607049923,-209.40437684,0.00029033,2]
[403862486,1769607049933,-322.6107,0.00029033,2]
[403862487,1769607049942,-500.0,0.00029033,2]
[403862488,1769607049953,-500.0,0.00029033,2]
[403862489,1769607049963,-500.0,0.00029033,2]
[403862490,1769607049973,-500.0,0.00029033,2]
[403862491,1769607049984,-500.0,0.00029033,2]
[403862492,1769607049996,-500.0,0.00029033,2]
[403862493,1769607050006,-500.0,0.00029033,2]
[403862494,1769607050015,-500.0,0.00029033,2]
[403862495,1769607050025,-500.0,0.00029033,2]
[403862496,1769607050035,-721.12765535,0.00029033,2]
[403862497,1769607050045,-500.0,0.00029033,2]
[403862498,1769607050055,-500.0,0.00029033,2]
[403862499,1769607050065,-250.0,0.00029033,2]
[403862500,1769607050074,-250.0,0.00029033,2]
[403862501,1769607050083,-250.0,0.00029033,2]
[403862502,1769607050092,-2000.0,0.00029033,2]
[403862503,1769607050101,-250.0,0.00029033,2]
[403862504,1769607050110,-2000.0,0.00029033,2]
[403862505,1769607050119,-250.0,0.00029033,2]
[403862506,1769607050128,-2000.0,0.00029033,2]
[403862507,1769607050138,-250.0,0.00029033,2]
[403862508,1769607050148,-2000.0,0.00029033,2]
[403862509,1769607050159,-250.0,0.00029033,2]
[403862510,1769607050168,-2000.0,0.00029033,2]
[403862511,1769607050178,-364.97101815,0.00029033,2]
[403862512,1769607050187,-2000.0,0.00029033,2]
[403862513,1769607050205,-854.2589148,0.00029033,2]
[403862514,1769607050217,-2000.0,0.00029033,2]
[403862515,1769607050227,-2000.0,0.00029033,2]
[403862516,1769607050236,-2000.0,0.00029033,2]
[403862517,1769607050246,-2000.0,0.00029033,2]
[403862518,1769607050256,-2000.0,0.00029033,2]
[403862519,1769607050266,-3000.0,0.00029033,2]
[403862520,1769607050275,-3000.0,0.00029033,2]
[403862521,1769607050285,-3000.0,0.00029033,2]
[403862522,1769607050295,-3000.0,0.00029033,2]
[403862523,1769607050304,-3000.0,0.00029033,2]
[403862524,1769607050313,-209.40437684,0.00029033,2]
[403862525,1769607050322,-3000.0,0.00029033,2]
[403862526,1769607050332,-3000.0,0.00029033,2]
[403862527,1769607050341,-3000.0,0.00029033,2]
[403862528,1769607050350,-3000.0,0.00029033,2]
[403862529,1769607050359,-3000.0,0.00029033,2]
[403862530,1769607050368,-3000.0,0.00029033,2]
[403862531,1769607050378,-500.0,0.00029033,2]
[403862532,1769607050387,-500.0,0.00029033,2]
[403862533,1769607050396,-500.0,0.00029033,2]
[403862534,1769607050405,-500.0,0.00029033,2]
[403862535,1769607050415,-500.0,0.00029033,2]
[403862536,1769607050424,-500.0,0.00029033,2]
[403862537,1769607050433,-500.0,0.00029033,2]
[403862538,1769607050443,-500.0,0.00029033,2]
[403862539,1769607050452,-500.0,0.00029033,2]
[403862540,1769607050463,-500.0,0.00029033,2]
[403862541,1769607050473,-500.0,0.00029033,2]
[403862542,1769607050484,-209.40437684,0.00029033,2]
[403862543,1769607050494,-578.20924308,0.00029033,2]
[403862544,1769607050504,-174.61919141,0.00029033,2]
[403862545,1769607050513,-2000.0,0.00029033,2]
[403862546,1769607050523,-2000.0,0.00029033,2]
[403862547,1769607050532,-2000.0,0.00029033,2]
[403862548,1769607050541,-2000.0,0.00029033,2]
[403862549,1769607050551,-2000.0,0.00029033,2]
[403862550,1769607050561,-2000.0,0.00029033,2]
[403862551,1769607050572,-2000.0,0.00029033,2]
[403862552,1769607050583,-2000.0,0.00029033,2]
[403862553,1769607050593,-2000.0,0.00029033,2]
[403862554,1769607050603,-2000.0,0.00029033,2]
[403862555,1769607050613,-2000.0,0.00029033,2]
[403862556,1769607050624,-217.15233878,0.00029088,2]
[403862557,1769607050636,-1204.0,0.000291,2]
[403862558,1769607050645,-916.0,0.000291,2]
[403862559,1769607050655,-225.18697532,0.00029143,2]
[403862560,1769607050664,-233.51889341,0.00029198,2]
[403862561,1769607050674,-242.15909246,0.00029253,2]
[403862562,1769607050683,-2000.0,0.000293,2]
[403862563,1769607050693,-251.11897888,0.00029308,2]
[403862564,1769607050703,-260.4103811,0.00029363,2]
[403862565,1769607050712,-270.0455652,0.00029418,2]
[403862566,1769607050722,-280.03725112,0.00029473,2]
[403862567,1769607050731,-290.39862941,0.00029528,2]
[403862568,1769607050745,-150.00265662,0.00029575,39]
[403862569,1769607050755,-151.0,0.00029581,2]
[403862570,1769607050765,-217.15233878,0.00029581,2]
[403862571,1769607050775,-151.0,0.00029581,2]
[403862572,1769607050785,-363.0280823,0.00029581,2]
[403862573,1769607050795,-885.86649465,0.00029581,2]
[403862574,1769607050805,-207.69124521,0.00029581,2]
[403862575,1769607050815,-181.08010149,0.00029581,2]
[403862576,1769607050825,-301.1433787,0.00029583,2]
[403862577,1769607050834,-1134.76,0.000296,14]
[403862578,1769607050844,-244.76,0.000297,7]
[403862579,1769607050855,-3183.4293973,0.0003,120]
[403862580,1769607050866,-151.0,0.00030129,2]
[403862581,1769607050878,-319.06740152,0.00030129,2]
[403862582,1769607050889,-151.0,0.00030129,2]
[403862583,1769607050899,-918.64355495,0.00030129,2]
[403862584,1769607050910,-187.78006525,0.00030129,2]
[403862585,1769607051147,-2000.0,0.00030136,22]
[403862586,1769607051169,-334.5472959,0.00030402,2]
[403862587,1769607051179,-8173.82373325,0.000305,2]
[403862588,1769607051189,-151.0,0.00030677,2]
[403862589,1769607051199,-952.63336648,0.00030677,2]
[403862590,1769607051208,-194.72792766,0.00030677,2]
[403862591,1769607051225,-150.00265662,0.00030995,43]
[403862592,1769607051235,-11382.96689091,0.00031,2]
[403862593,1769607051246,-151.0,0.00031225,2]
[403862594,1769607051257,-987.88080104,0.00031225,2]
[403862595,1769607051267,-201.93286099,0.00031225,2]
[403862596,1769607051277,-4046.5,0.00031387,2]
[403862597,1769607051287,-2000.0,0.00031506,32]
[403862598,1769607051297,-313.131,0.00031682,2]
[403862599,1769607051307,-5930.0,0.00031682,2]
[403862600,1769607051317,-6572.0,0.00031682,2]
[403862601,1769607051327,-346.92554585,0.00031771,2]
[403862602,1769607051337,-747.8093786,0.00031772,2]
[403862603,1769607051347,-599.60298507,0.00031772,2]
[403862604,1769607051357,-151.0,0.00031773,2]
[403862605,1769607051368,-1024.43239068,0.00031773,2]
[403862606,1769607051378,-209.40437684,0.00031773,2]
[403862607,1769607051388,-24467.0,0.000321,2]
[403862608,1769607051398,-206.64,0.00032268,2]
[403862609,1769607051408,-207.64,0.0003232,2]
[403862610,1769607051418,-151.0,0.00032321,2]
[403862611,1769607051428,-1062.33638913,0.00032321,2]
[403862612,1769607051438,-217.15233878,0.00032321,2]
[403862613,1769607051448,-150.00265662,0.00032416,47]
[403862614,1769607051458,-5532.0,0.000327,3]
[403862615,1769607051468,-206.64,0.00032762,2]
[403862616,1769607051479,-257.895,0.00032849,30]
[403862617,1769607051490,-207.64,0.00032868,2]
[403862618,1769607051501,-1101.64283553,0.00032869,2]
[403862619,1769607051511,-225.18697532,0.00032869,2]
[403862620,1769607051522,-2000.0,0.00032876,42]
[403862621,1769607051533,-500.0,0.00032877,7]
[403862622,1769607051543,-500.0,0.00032877,7]
[403862623,1769607051553,-288.39921426,0.00032877,7]
[403862624,1769607051563,-500.0,0.00032877,7]
[403862625,1769607051573,-500.0,0.00032877,7]
[403862626,1769607051584,-500.0,0.00032877,7]
[403862627,1769607051595,-500.0,0.00032877,7]
[403862628,1769607051606,-500.0,0.00032877,7]
[403862629,1769607051616,-500.0,0.00032877,7]
[403862630,1769607051630,-1304.07,0.000329,2]
[403862631,1769607051641,-163.59,0.00032911,2]
[403862632,1769607051651,-540.285594,0.00033,8]
[403862633,1769607051660,-858.77,0.00033,14]
[403862634,1769607051672,-2000.0,0.00033,2]
[403862635,1769607051682,-359.76179104,0.0003314,2]
[403862636,1769607051692,-5532.0,0.000332,5]
[403862637,1769607051702,-206.63,0.00033257,2]
[403862638,1769607051714,-2303.17,0.000333,14]
[403862639,1769607051725,-207.64,0.00033417,2]
[403862640,1769607051736,-1142.40362045,0.00033417,2]
[403862641,1769607051746,-233.51889341,0.00033417,2]
[403862642,1769607051756,-163.59,0.00033444,2]
[403862643,1769607051770,-564.32158074,0.00033482,2]
[403862644,1769607051781,-506.0,0.000335,16]
[403862645,1769607051791,-4046.5,0.00033749,5]
[403862646,1769607051802,-150.00265677,0.00033836,51]
[403862647,1769607051812,-1184.6725544,0.00033965,2]
[403862648,1769607051822,-242.15909246,0.00033965,2]
[403862649,1769607051832,-152.0,0.0003419,3]
[403862650,1769607051841,-2000.0,0.00034246,57]
[403862651,1769607051852,-310.6741041,0.00034509,2]
[403862652,1769607051863,-775.47832561,0.00034511,2]
[403862653,1769607051872,-621.78829552,0.00034511,2]
[403862654,1769607051883,-998.15739087,0.00034513,2]
[403862655,1769607051894,-345.02175806,0.00034513,2]
[403862656,1769607051903,-8390.65,0.00034528,2]
[403862657,1769607051913,-1304.07,0.000346,2]
[403862658,1769607051923,-5930.0,0.00034682,2]
[403862659,1769607051933,-170.80025749,0.00035256,55]
[403862660,1769607051943,-151.0,0.0003538,120]
[403862661,1769607051953,-634.97936555,0.00035513,10]
[403862662,1769607051963,-2000.0,0.00035616,67]
[403862663,1769607051973,-500.0,0.00035616,7]
[403862664,1769607051982,-500.0,0.00035616,7]
[403862665,1769607051992,-500.0,0.00035616,7]
[403862666,1769607052003,-500.0,0.00035616,7]
[403862667,1769607052013,-500.0,0.00035616,7]
[403862668,1769607052023,-500.0,0.00035616,7]
[403862669,1769607052033,-500.0,0.00035616,7]
[403862670,1769607052042,-500.0,0.00035616,7]
[403862671,1769607052052,-375.18484396,0.00035616,7]
[403862672,1769607052062,-500.0,0.00035616,7]
[403862673,1769607052071,-500.0,0.00035616,7]
[403862674,1769607052081,-500.0,0.00035616,7]
[403862675,1769607052090,-500.0,0.00035616,7]
[403862676,1769607052100,-500.0,0.00035616,7]
[403862677,1769607052109,-500.0,0.00035616,7]
[403862678,1769607052119,-500.0,0.00035616,7]
[403862679,1769607052128,-500.0,0.00035616,7]
[403862680,1769607052138,-500.0,0.00035616,7]
[403862681,1769607052152,-500.0,0.00035616,7]
[403862682,1769607052162,-500.0,0.00035616,7]
[403862683,1769607052171,-500.0,0.00035616,7]
[403862684,1769607052181,-500.0,0.00035616,7]
[403862685,1769607052192,-778.02286202,0.00035787,8]
[403862686,1769607052201,-4046.5,0.00036112,7]
[403862687,1769607052211,-1000.0,0.00036401,2]
[403862688,1769607052221,-1304.07,0.000365,2]
[403862689,1769607052231,-170.80025749,0.00036676,59]
[403862690,1769607052241,-2000.0,0.000367,2]
[403862691,1769607052250,-205.0,0.0003674,2]
[403862692,1769607052260,-125357.19946879,0.00036888,60]
[403862693,1769607052269,-2000.0,0.00036986,77]
[403862694,1769607052279,-500.0,0.00036986,5]
[403862695,1769607052289,-244.76,0.00037,14]
[403862696,1769607052299,-804.17102365,0.0003725,2]
[403862697,1769607052309,-513.23644864,0.0003725,2]
[403862698,1769607052319,-1000.0,0.0003726,5]
[403862699,1769607052328,-945.63,0.000373,30]
[403862700,1769607052338,-2303.17,0.000373,14]
[403862701,1769607052348,-858.77,0.000373,14]
[403862702,1769607052357,-1500.0,0.00037534,5]
[403862703,1769607052368,-1500.0,0.000376,7]
[403862704,1769607052378,-5930.0,0.00037682,2]
[403862705,1769607052387,-3161.861,0.00037728,49]
[403862706,1769607052397,-222.056,0.00037728,49]
[403862707,1769607052407,-200.0,0.00037793,11]
[403862708,1769607052417,-230.48687836,0.00037808,5]
[403862709,1769607052428,-170.80025749,0.00038096,63]
[403862710,1769607052437,-1304.07,0.000381,2]
[403862711,1769607052447,-151.0,0.000381,31]
[403862712,1769607052458,-2831.0,0.00038109,11]
[403862713,1769607052468,-2831.0,0.0003831,11]
[403862714,1769607052478,-2000.0,0.00038356,120]
[403862715,1769607052490,-151.0,0.00038356,120]
[403862716,1769607052502,-649.740431,0.00038356,120]
[403862717,1769607052512,-151.0,0.00038356,120]
[403862718,1769607052521,-649.740431,0.00038356,120]
[403862719,1769607052537,-151.0,0.00038356,120]
[403862720,1769607052548,-649.740431,0.00038356,120]
[403862721,1769607052559,-151.0,0.00038356,120]
[403862722,1769607052570,-649.740431,0.00038356,120]
[403862723,1769607052581,-151.0,0.00038356,120]
[403862724,1769607052591,-151.0,0.00038356,120]
[403862725,1769607052600,-153.477983,0.00038356,120]
[403862726,1769607052610,-151.0,0.00038356,120]
[403862727,1769607052621,-151.0,0.00038356,120]
[403862728,1769607052634,-172.214516,0.00038356,120]
[403862729,1769607052644,-151.0,0.00038356,120]
[403862730,1769607052654,-172.214516,0.00038356,120]
[403862731,1769607052664,-151.0,0.00038356,120]
[403862732,1769607052676,-256.382205,0.00038356,120]
[403862733,1769607052686,-172.214516,0.00038356,120]
[403862734,1769607052696,-151.0,0.00038356,120]
[403862735,1769607052711,-256.382205,0.00038356,120]
[403862736,1769607052721,-172.214516,0.00038356,120]
[403862737,1769607052731,-151.0,0.00038356,120]
[403862738,1769607052741,-256.382205,0.00038356,120]
[403862739,1769607052751,-172.214516,0.00038356,120]
[403862740,1769607052760,-256.382205,0.00038356,120]
[403862741,1769607052770,-172.214516,0.00038356,120]
[403862742,1769607052780,-151.0,0.00038356,120]
[403862743,1769607052791,-151.0,0.00038356,120]
[403862744,1769607052801,-151.0,0.00038356,14]
[403862745,1769607052811,-151.0,0.00038356,120]
[403862746,1769607052820,-151.0,0.00038356,120]
[403862747,1769607052830,-151.0,0.00038356,120]
[403862748,1769607052840,-151.0,0.00038356,14]
[403862749,1769607052849,-231.424307,0.00038356,120]
[403862750,1769607052859,-172.214516,0.00038356,120]
[403862751,1769607052869,-172.214516,0.00038356,120]
[403862752,1769607052879,-256.382205,0.00038356,120]
[403862753,1769607052889,-151.0,0.00038356,120]
[403862754,1769607052899,-256.382205,0.00038356,120]
[403862755,1769607052908,-151.0,0.00038356,120]
[403862756,1769607052918,-151.0,0.00038356,14]
[403862757,1769607052928,-252.213822,0.00038356,14]
[403862758,1769607052938,-151.0,0.00038356,120]
[403862759,1769607052947,-151.0,0.00038356,120]
[403862760,1769607052956,-256.382205,0.00038356,120]
[403862761,1769607052966,-151.0,0.00038356,120]
[403862762,1769607052976,-256.382205,0.00038356,120]
[403862763,1769607052986,-151.0,0.00038356,120]
[403862764,1769607052996,-151.0,0.00038356,120]
[403862765,1769607053005,-151.0,0.00038356,120]
[403862766,1769607053015,-151.0,0.00038356,120]
[403862767,1769607053024,-751.683482,0.00038356,120]
[403862768,1769607053034,-151.0,0.00038356,120]
[403862769,1769607053043,-751.683482,0.00038356,120]
[403862770,1769607053053,-281.0,0.00038356,120]
[403862771,1769607053064,-751.683482,0.00038356,120]
[403862772,1769607053074,-336.643787,0.00038356,120]
[403862773,1769607053084,-751.683482,0.00038356,120]
[403862774,1769607053094,-336.643787,0.00038356,120]
[403862775,1769607053104,-751.683482,0.00038356,120]
[403862776,1769607053113,-336.643787,0.00038356,120]
[403862777,1769607053123,-751.683482,0.00038356,120]
[403862778,1769607053132,-336.643787,0.00038356,120]
[403862779,1769607053142,-751.683482,0.00038356,120]
[403862780,1769607053151,-751.683482,0.00038356,120]
[403862781,1769607053161,-336.643787,0.00038356,120]
[403862782,1769607053170,-336.643787,0.00038356,120]
[403862783,1769607053180,-336.643787,0.00038356,120]
[403862784,1769607053189,-336.643787,0.00038356,120]
[403862785,1769607053199,-151.0,0.00038356,120]
[403862786,1769607053208,-151.0,0.00038356,120]
[403862787,1769607053218,-151.0,0.00038356,120]
[403862788,1769607053227,-411.608667,0.00038356,120]
[403862789,1769607053237,-174.33788,0.00038356,120]
[403862790,1769607053246,-151.0,0.00038356,120]
[403862791,1769607053256,-411.608667,0.00038356,120]
[403862792,1769607053266,-151.0,0.00038356,120]
[403862793,1769607053276,-174.33788,0.00038356,120]
[403862794,1769607053286,-151.0,0.00038356,120]